[Event "85th Tata Steel Challengers 2023"]
[Site "Wijk aan Zee"]
[Date "2023.01.17"]
[Round "4.7"]
[White "Mishra, Abhimanyu"]
[Black "L'Ami, Erwin"]
[Result "0-1"]
[ECO "E04"]
[WhiteElo "2559"]
[BlackElo "2627"]
[Annotator "TA"]
[PlyCount "154"]
[EventDate "2023.01.10"]
[EventType "tourn"]
[EventCountry "NED"]
[SourceTitle "playchess.com"]
[Source "ChessBase"]
[SourceQuality "1"]
[TimeControl "40/6000+30:30/3000+30:900+30"]

{[%evp 14,154,25,0,41,62,44,37,39,44,37,48,60,54,66,41,77,97,99,93,96,43,64,60,49,5,71,64,68,72,102,101,102,110,88,62,64,76,144,122,118,22,14,-18,-28,-33,-34,-34,-38,-33,-33,-33,-37,-70,-70,-63,-63,-89,-81,-87,-79,-112,-112,-122,-111,-127,-90,-106,-90,-96,-85,-106,-105,-126,-126,-129,-124,-153,-152,-152,-145,-191,-169,-219,-219,-218,-216,-268,-261,-259,-260,-250,-143,-137,-135,-268,-268,-260,-257,-497,-195,-199,-82,-82,-64,-58,-46,-174,-173,-195,-190,-195,-193,-318,-306,-319,-202,-189,0,-329,-325,-327,-304,-554,-313,-516,-515,-654,-649,-609,-593,-606,-531,-12843,-12843,-12844,-12844,-12845,-12845,-12845,-12846,-29986,-29979]} 1. d4 {[%emt 0:00:02]} d5 {[%emt 0:00:12]} 2. Nf3 {[%emt 0:00:10]} Nf6 {[%emt 0:00:36]} 3. c4 {[%emt 0:00:20]} e6 {[%emt 0:00:11]} 4. g3 {[%emt 0:00:22]} dxc4 {[%emt 0:01:44]} 5. Bg2 {[%emt 0:00:33]} c5 {[%emt 0:00:11]} 6. O-O {[%emt 0:01:21]} Nc6 {[%emt 0:02:02]} 7. Qa4 {[%emt 0:01:15]} Bd7 {[%emt 0:00:56]} 8. dxc5 {[%emt 0:00:54]} (8. Qxc4 $5 {[%cal Rd4c5]} b5 9. Qd3 $11) 8... Qa5 {[%emt 0:08:44] 8...Na5 is becoming the main line. E04: Open Catalan: 5 Nf3.} (8... Na5 $5 {[%cal Rd7a4]} 9. Qc2 Bxc5 $11) 9. Qxa5 {[%emt 0:17:03]} Nxa5 {[%emt 0:00:11]} 10. Bd2 {[%emt 0:00:12]} Nc6 {[%emt 0:02:47] White is slightly better.} 11. Na3 {[%emt 0:00:22]} Bxc5 {[%emt 0:02:45]} 12. Nxc4 {[%emt 0:00:31] [#]} Nd5 $146 {[%emt 0:10:39]} ({Predecessor:} 12... O-O 13. Rfd1 Rfd8 14. Rac1 Be8 15. Nfe5 Nxe5 16. Nxe5 Rac8 17. Nd3 b6 18. Nxc5 Rxc5 {½-½ Baenziger,F (2426)-Naumann,A (2504) AUT-chT 2223 2022 (3.2)}) 13. a3 {[%emt 0:13:23]} Be7 {[%emt 0:06:16]} 14. b4 {[%emt 0:07:21]} O-O {[%emt 0:05:38]} 15. b5 {[%emt 0:03:41]} Nb8 {[%emt 0:02:55]} 16. a4 {[%emt 0:08:14]} a6 {[%emt 0:09:47]} 17. b6 {[%emt 0:07:02]} (17. Rab1 $16) 17... Rc8 {[%emt 0:03:39]} 18. Rfc1 {[%emt 0:04:26]} Nc6 {[%emt 0:02:44]} 19. a5 {[%emt 0:05:42]} (19. e4 $5 {[%cal Re4d5]} Nf6 20. Bf4 $14) 19... f6 {[%emt 0:06:30]} (19... Be8 $11 {remains equal.}) 20. e4 $16 {[%emt 0:06:54][%cal Be2e4,Be4e5][%mdl 32]} Ndb4 {[%emt 0:00:16]} 21. e5 $1 $36 {[%emt 0:02:58][%mdl 2048] White is really pushing.} Nd5 {[%emt 0:02:29]} 22. Nd6 {[%emt 0:09:37]} Bxd6 {[%emt 0:03:10]} 23. exd6 {[%emt 0:00:03]} Rd8 {[%emt 0:01:30]} 24. Ne1 {[%emt 0:02:10]} Be8 {[%emt 0:01:41]} 25. Nd3 $1 {[%emt 0:05:49] Strongly threatening Nc5.} Rxd6 {[%emt 0:01:23]} (25... Nd4 $142) 26. Nc5 {[%emt 0:01:13]} Nd8 {[%emt 0:04:21]} 27. Ne4 {[%emt 0:01:26]} (27. Rd1 $1 $16) 27... Rc6 $11 {[%emt 0:07:18]} 28. Nc3 {[%emt 0:01:11] [#]} Nxc3 {[%emt 0:04:16]} 29. Bxc6 {[%emt 0:03:57] This pair of bishops is nice.} (29. Bxc3 Rc4) 29... Ne2+ {[%emt 0:00:22]} 30. Kf1 {[%emt 0:00:03]} Nxc6 {[%emt 0:00:12]} 31. Kxe2 {[%emt 0:00:29]} Nd4+ {[%emt 0:00:11]} 32. Ke3 {[%emt 0:02:53]} Nb3 {[%emt 0:00:28][%csl LRa1,LRc1]} 33. Bb4 {[%emt 0:01:05][%cal Oa1b1]} Nxa1 {[%emt 0:03:39]} 34. Rxa1 $15 {[%emt 0:00:02][%mdl 4096] Endgame KRB-KRB} Rc8 {[%emt 0:01:22] Inhibits Rc1.} 35. Ra3 {[%emt 0:01:00]} Rc4 {[%emt 0:00:57]} 36. Bd2 {[%emt 0:01:13]} Bc6 {[%emt 0:00:52]} 37. f3 {[%emt 0:01:55]} Rc5 {[%emt 0:00:29]} 38. Rd3 {[%emt 0:01:06]} Kf7 {[%emt 0:01:25]} 39. Rd8 {[%emt 0:00:57]} Rb5 {[%emt 0:06:23]} 40. f4 {[%emt 0:00:52]} h6 {[%emt 0:04:12]} 41. Bc3 {[%emt 0:11:23]} Rb1 {[%emt 0:06:06]} 42. Rd6 {[%emt 0:04:20]} Ke7 {[%emt 0:02:50]} 43. Rd4 {[%emt 0:01:14]} g5 {[%emt 0:09:31]} 44. Rc4 {[%emt 0:07:48]} Kf7 {[%emt 0:12:58]} 45. Rd4 {[%emt 0:07:24]} Rf1 {[%emt 0:03:21]} 46. Bb4 {[%emt 0:06:42]} Kg6 {[%emt 0:01:11]} 47. Be7 {[%emt 0:03:06]} (47. fxg5 $17 {keeps fighting.} hxg5 48. Rc4 Rf3+ 49. Kd2) 47... Bd5 {[%emt 0:02:01]} 48. Bf8 {[%emt 0:03:04]} (48. fxg5 $142 hxg5 49. Bb4) 48... Re1+ $1 $19 {[%emt 0:01:33]} 49. Kd3 {[%emt 0:01:34]} Rh1 {[%emt 0:00:56]} 50. fxg5 {[%emt 0:01:04]} hxg5 {[%emt 0:00:14]} 51. h4 {[%emt 0:00:11]} Rh3 {[%emt 0:07:35]} 52. Bd6 {[%emt 0:00:28] [#]} Bc6 {[%emt 0:01:00]} (52... Bg2 $1 $19 53. hxg5 e5) 53. Kd2 $17 {[%emt 0:02:57]} e5 {[%emt 0:04:07]} 54. Rc4 {[%emt 0:01:03]} (54. Bxe5 $17 gxh4 55. Rd6) 54... Bd5 $19 {[%emt 0:02:14]} ({Weaker is} 54... Rxg3 55. Rxc6 bxc6 56. Kc2 $11) 55. Rc5 {[%emt 0:01:27] [#]} Be4 {[%emt 0:02:51]} 56. Bxe5 $2 {[%emt 0:02:35]} (56. hxg5 Rxg3 57. Rc4) 56... gxh4 $2 {[%emt 0:01:08]} (56... fxe5 57. Rxe5 Bf5) 57. Bc7 {[%emt 0:01:08]} f5 {[%emt 0:02:27]} (57... hxg3 $19 {has better winning chances. White must now prevent ...g2.} 58. Rc3 Rh2+ 59. Ke3 f5 60. Bxg3 Ra2) 58. gxh4 $17 {[%emt 0:00:51]} Rd3+ {[%emt 0:00:10]} 59. Ke2 {[%emt 0:00:51]} Kh5 {[%emt 0:00:09]} 60. Re5 {[%emt 0:00:48]} (60. Bf4 $15) 60... Kxh4 $19 {[%emt 0:00:49]} 61. Re8 {[%emt 0:00:00]} Ra3 {[%emt 0:00:00]} 62. Re5 {[%emt 0:00:00]} Kg4 {[%emt 0:00:00]} 63. Bd6 {[%emt 0:00:00]} (63. Re7 $142) 63... Ra4 {[%emt 0:00:00]} 64. Kf2 {[%emt 0:00:00]} Bc6 {[%emt 0:00:00] Wards off Re8} 65. Rc5 {[%emt 0:00:00][%cal Oc5c6] Threatens to win with Rxc6!} Be4 {[%emt 0:00:00]} (65... Bf3 $142 66. Be5 Ra2+ 67. Ke1 f4) 66. Re5 $1 {[%emt 0:00:28]} f4 {[%emt 0:00:00][%cal Bf5f4,Bf4f3][%mdl 32]} 67. Re7 {[%emt 0:02:19]} Bd5 {[%emt 0:00:00]} 68. Bc7 $2 {[%emt 0:01:11]} (68. Re1 {was called for.}) 68... Rxa5 {[%emt 0:00:00] ...f3 is the strong threat.} 69. Rg7+ $2 {[%emt 0:00:34]} (69. Re2) 69... Kf5 {[%emt 0:00:00]} 70. Rh7 {[%emt 0:00:07]} Ra2+ {[%emt 0:00:00]} 71. Ke1 {[%emt 0:15:20]} f3 {[%emt 0:14:18]} 72. Rh5+ {[%emt 0:00:29]} Ke4 {[%emt 0:00:06]} 73. Re5+ {[%emt 0:00:40]} Kd4 {[%emt 0:00:07]} 74. Rf5 {[%emt 0:00:11] [#]} Ke3 $1 {[%emt 0:01:06][%cal Ra2a1]} 75. Bf4+ {[%emt 0:00:38]} Ke4 {[%emt 0:00:07][%mdl 64] Deflection} 76. Re5+ {[%emt 0:00:12]} Kd4 {[%emt 0:00:17] ( -> ...f2+)} 77. Bg3 {[%emt 0:01:15] [#]} f2+ $1 {[%emt 0:00:09] Weighted Error Value: White=0.26 (precise) /Black=0.19 (very precise)} 0-1

[Event "85th Tata Steel Challengers 2023"]
[Site "Wijk aan Zee"]
[Date "2023.01.18"]
[Round "5.1"]
[White "Tabatabaei, M. Amin"]
[Black "Yilmaz, Mustafa"]
[Result "0-1"]
[ECO "D35"]
[WhiteElo "2686"]
[BlackElo "2609"]
[Annotator "TA"]
[PlyCount "98"]
[EventDate "2023.01.10"]
[EventType "tourn"]
[EventCountry "NED"]
[SourceTitle "playchess.com"]
[Source "ChessBase"]
[SourceQuality "1"]
[TimeControl "40/6000+30:30/3000+30:900+30"]

{[%evp 16,98,28,13,15,17,18,6,30,-17,-27,-27,-23,-33,-25,-22,-23,-23,-30,-26,0,0,0,0,0,0,0,-10,0,0,0,0,0,0,0,-1,0,-32,-20,-66,-37,-40,-54,-111,-31,-51,-26,-93,-70,-58,-58,-64,-20,-49,-7,-30,-17,-22,-15,-285,-289,-424,-414,-401,-364,-362,-350,-343,-306,-298,-291,-2019,-1951,-6079,-6103,-6086,-6086,-5933,-5916,-5916,-5783,-5531,-5506,-5239,-5239]} 1. c4 {[%emt 0:13:47]} e6 {[%emt 0:04:57]} 2. Nc3 {[%emt 0:00:43]} d5 {[%emt 0:00:04]} 3. d4 {[%emt 0:00:05]} Nf6 {[%emt 0:00:36]} 4. cxd5 {[%emt 0:00:07]} exd5 {[%emt 0:00:04]} 5. Bg5 {[%emt 0:00:10]} c6 {[%emt 0:01:09]} 6. e3 {[%emt 0:00:36]} Be7 {[%emt 0:00:16]} 7. Bd3 {[%emt 0:00:15]} Nbd7 {[%emt 0:00:39]} 8. Nf3 {[%emt 0:02:20]} Ne4 {[%emt 0:01:26]} 9. Bf4 {[%emt 0:00:31]} (9. Nxe4 $2 dxe4 10. Bxe4 (10. Bxe7 $2 Qxe7 11. O-O O-O $19) 10... Bxg5 $19) 9... Ndf6 {[%emt 0:00:24] D35: Queen's Gambit Declined: Exchange Variation.} 10. O-O {[%emt 0:03:10]} O-O {[%emt 0:09:46]} 11. Ne5 {[%emt 0:02:59]} Bd6 {[%emt 0:09:09] [#] The position is equal.} 12. Na4 $146 {[%emt 0:13:20]} (12. Nxe4 $142 dxe4 13. Bc4) ({Predecessor:} 12. h3 Qc7 13. Ne2 Nc5 14. Bc2 Ne6 15. Bg3 g6 16. Bh4 Ne8 17. f3 f6 18. Nd3 {½-½ Nichols,S (2350)-Enev,Z (2382) ZH-2021-0-01923}) 12... g5 $11 {[%emt 0:12:38]} 13. Bxe4 {[%emt 0:07:47]} Nxe4 {[%emt 0:07:15]} 14. f3 $1 {[%emt 0:01:26]} gxf4 {[%emt 0:01:34]} 15. fxe4 {[%emt 0:00:14]} dxe4 {[%emt 0:05:54]} 16. exf4 {[%emt 0:11:46]} ({Much weaker is} 16. Rxf4 f6 17. Qb3+ Kg7 $17) 16... f6 {[%emt 0:03:09]} (16... Bc7 {feels hotter.} 17. f5 Qg5 18. Qg4 Qxg4 19. Nxg4 Kg7) 17. Nc4 {[%emt 0:01:46]} ({But not} 17. Qb3+ Kg7 18. Nc4 Be7 $17) 17... Bc7 {[%emt 0:06:05] Threatens to win with ...b5.} 18. Ne3 {[%emt 0:02:20]} Kh8 {[%emt 0:04:39]} 19. Rc1 {[%emt 0:02:59]} Qe7 {[%emt 0:03:41]} 20. Qc2 {[%emt 0:08:56]} Bd6 {[%emt 0:02:09]} 21. a3 {[%emt 0:05:41]} Re8 {[%emt 0:03:07]} 22. Rce1 {[%emt 0:01:04]} Qc7 {[%emt 0:02:56]} 23. g3 {[%emt 0:01:38]} Bh3 {[%emt 0:06:15]} 24. Rf2 {[%emt 0:00:10]} Rad8 {[%emt 0:00:56]} 25. Nc3 {[%emt 0:01:21]} Qe7 {[%emt 0:01:36]} 26. Rd2 {[%emt 0:07:02]} Bc7 {[%emt 0:02:00]} 27. Ncd1 {[%emt 0:01:03]} (27. Kh1 $11 {might be stronger.}) 27... Bb6 {[%emt 0:04:47]} (27... Qg7 $5 {[%cal Rc7f4]} 28. Nf2 Bc8 $15) 28. Nf2 {[%emt 0:00:20]} Be6 {[%emt 0:02:38] A strong pair of Bishops.} 29. Qc3 {[%emt 0:03:11] [#]} (29. f5 $15 Bg8 30. Qc3) 29... Bf7 {[%emt 0:03:01]} (29... f5 $1 $17 {aiming for ...Qg7.} 30. Nc2 (30. d5+ Qg7 $17) 30... Qg7) 30. b4 {[%emt 0:01:01]} Qe6 {[%emt 0:02:58]} 31. Rb1 {[%emt 0:04:36]} (31. Nc2 $11) 31... Rd6 {[%emt 0:01:11]} 32. f5 {[%emt 0:02:09]} Qd7 {[%emt 0:01:17][%cal Rb6d4]} 33. Rbd1 {[%emt 0:00:02]} Bd5 {[%emt 0:02:34]} 34. Kg2 {[%emt 0:02:58]} Kg7 {[%emt 0:00:28]} 35. Nh3 {[%emt 0:00:34]} Bf7 {[%emt 0:01:07]} 36. Nf4 {[%emt 0:01:35]} Rd8 {[%emt 0:00:56][%cal Rb6d4]} 37. d5 $2 {[%emt 0:01:19][%mdl 8192] Loses the game.} (37. Qc2 $11) 37... cxd5 $19 {[%emt 0:03:17] ...d4 would be deadly.} 38. Rxd5 {[%emt 0:02:54]} (38. Rd4 $142) 38... Bxd5 {[%emt 0:00:32]} 39. Rxd5 {[%emt 0:00:48]} Rxd5 {[%emt 0:01:54][%mdl 64] Remove Defender} 40. Nexd5 {[%emt 0:03:50]} Qxf5 {[%emt 0:00:19]} 41. Nxf6 {[%emt 0:50:02]} Kf7 {[%emt 0:10:39]} 42. N6d5 {[%emt 0:00:00]} e3 {[%emt 0:08:50]} ({Weaker is} 42... Rxd5 43. Qc4 $11) 43. Kf3 {[%emt 0:00:00] Against Qe4+} (43. Qc4 Rc8 44. Nxe3+ Rxc4 45. Nxf5 Rc2+ 46. Kh3) 43... Rxd5 {[%emt 0:13:06] Black is clearly winning.} 44. Qb3 {[%emt 0:00:00] [#] Repels e2} e2 $1 {[%emt 0:00:41]} 45. Kxe2 {[%emt 0:00:00]} Qe4+ {[%emt 0:00:54]} 46. Kf1 {[%emt 0:00:00]} Qh1+ {[%emt 0:00:11]} 47. Ke2 {[%emt 0:00:00]} Qxh2+ {[%emt 0:00:14]} 48. Kf3 {[%emt 0:00:00] [#]} Qf2+ $1 {[%emt 0:00:08]} 49. Ke4 {[%emt 0:00:00]} Qd4+ {[%emt 0:00:06] Weighted Error Value: White=0.53/Black=0.10 (very precise)} 0-1

[Event "85th Tata Steel Challengers 2023"]
[Site "Wijk aan Zee"]
[Date "2023.01.18"]
[Round "5.2"]
[White "Donchenko, Alexander"]
[Black "Supi, Luis Paulo"]
[Result "1/2-1/2"]
[ECO "D59"]
[WhiteElo "2627"]
[BlackElo "2608"]
[Annotator "TA"]
[PlyCount "50"]
[EventDate "2023.01.10"]
[EventType "tourn"]
[EventCountry "NED"]
[SourceTitle "playchess.com"]
[Source "ChessBase"]
[SourceQuality "1"]
[TimeControl "40/6000+30:30/3000+30:900+30"]

{[%evp 23,50,0,0,0,0,0,0,0,0,0,0,0,0,0,0,-2,0,0,0,0,0,0,0,0,0,0,0,0,0]} 1. d4 {[%emt 0:00:04]} d5 {[%emt 0:00:02]} 2. c4 {[%emt 0:00:14]} e6 {[%emt 0:00:01]} 3. Nc3 {[%emt 0:00:23]} Be7 {[%emt 0:01:29]} 4. Nf3 {[%emt 0:05:29]} Nf6 {[%emt 0:00:05]} 5. Bg5 {[%emt 0:00:26]} h6 {[%emt 0:00:16]} 6. Bh4 {[%emt 0:00:08]} O-O {[%emt 0:00:15]} 7. e3 {[%emt 0:00:18]} b6 {[%emt 0:00:28]} 8. cxd5 {[%emt 0:07:13]} Nxd5 {[%emt 0:00:14]} 9. Bxe7 {[%emt 0:00:37]} Qxe7 {[%emt 0:00:11]} 10. Rc1 {[%emt 0:03:39]} Bb7 {[%emt 0:02:06]} 11. Bd3 {[%emt 0:01:19]} Rc8 {[%emt 0:01:29]} 12. O-O {[%emt 0:07:49]} c5 {[%emt 0:03:52] The position is equal.} 13. Nxd5 {[%emt 0:07:53] D59: Queen's Gambit Declined: Tartakower Defence: Main line (8 cxd5 Nxd5).} Bxd5 {[%emt 0:01:33]} 14. Ne5 {[%emt 0:16:41]} Nd7 {[%emt 0:09:30]} 15. Nxd7 {[%emt 0:01:56]} Qxd7 {[%emt 0:01:12]} 16. dxc5 {[%emt 0:01:27]} Rxc5 {[%emt 0:08:39]} 17. Rxc5 {[%emt 0:04:01]} bxc5 {[%emt 0:00:18]} 18. Bc4 {[%emt 0:00:14]} Rd8 {[%emt 0:01:56][%cal Ba8d8,Bd8d5,Bd5d2][%mdl 32]} 19. Bxd5 {[%emt 0:00:34]} Qxd5 {[%emt 0:00:12] [#]} 20. Qxd5 $146 {[%emt 0:00:35]} ({Predecessor:} 20. Qa4 c4 21. g3 Rb8 22. Rd1 Qf3 23. Qc2 g6 24. Rd2 Rc8 25. h4 h5 26. Qc3 {1-0 Bouchaud,V (2195)-Toth,C (2355) Oz.com qual blitz 2000 (5)}) 20... Rxd5 $11 {[%emt 0:00:05] KR-KR} 21. f3 {[%emt 0:00:07]} Rd2 {[%emt 0:00:47]} 22. Rf2 {[%emt 0:00:05]} Rd1+ {[%emt 0:00:03]} 23. Rf1 {[%emt 0:00:04]} Rd2 {[%emt 0:00:09]} 24. Rf2 {[%emt 0:00:05]} Rd1+ {[%emt 0:00:05]} 25. Rf1 {[%emt 0:00:04]} Rd2 {[%emt 0:00:07] A rather calm draw.   Weighted Error Value: White=0.00 (flawless) /Black=0.00 (flawless)} 1/2-1/2

[Event "85th Tata Steel Challengers 2023"]
[Site "Wijk aan Zee"]
[Date "2023.01.18"]
[Round "5.3"]
[White "L'Ami, Erwin"]
[Black "Ivic, Velimir"]
[Result "1/2-1/2"]
[ECO "D12"]
[WhiteElo "2627"]
[BlackElo "2585"]
[Annotator "TA"]
[PlyCount "77"]
[EventDate "2023.01.10"]
[EventType "tourn"]
[EventCountry "NED"]
[SourceTitle "playchess.com"]
[Source "ChessBase"]
[SourceQuality "1"]
[TimeControl "40/6000+30:30/3000+30:900+30"]

{[%evp 15,77,26,26,13,66,70,63,58,57,66,70,41,40,50,50,0,0,0,50,38,61,33,28,14,20,21,21,21,15,8,17,14,14,15,15,0,0,0,0,0,0,3,17,0,4,4,14,4,4,4,4,4,10,6,4,0,0,0,0,0,0,0,0,0]} 1. d4 {[%emt 0:00:03]} d5 {[%emt 0:00:22]} 2. c4 {[%emt 0:00:10]} c6 {[%emt 0:00:05]} 3. Nf3 {[%emt 0:00:10]} Nf6 {[%emt 0:00:12]} 4. e3 {[%emt 0:00:08]} Bf5 {[%emt 0:00:35][%cal Bc8f5,Bf5e4,Be4g6][%mdl 32]} 5. Nc3 {[%emt 0:00:25]} e6 {[%emt 0:00:14]} 6. Nh4 {[%emt 0:00:08]} Be4 {[%emt 0:00:33]} 7. f3 {[%emt 0:00:31]} Bg6 {[%emt 0:00:06]} 8. Qb3 {[%emt 0:00:20]} Qc7 {[%emt 0:00:54]} 9. cxd5 {[%emt 0:02:03] D12: Slav Defence: 3 Nf3 Nf6 4 e3 Bf5.} Nxd5 {[%emt 0:00:34]} (9... cxd5 $11 10. Nxg6 hxg6) 10. e4 $14 {[%emt 0:06:33]} Nxc3 {[%emt 0:00:14]} 11. bxc3 {[%emt 0:00:08] White is slightly better.} Be7 {[%emt 0:00:12]} 12. Nxg6 {[%emt 0:00:48]} hxg6 {[%emt 0:00:06] [#]} 13. Be3 $146 {[%emt 0:03:35]} ({Predecessor:} 13. g3 Nd7 14. Be3 O-O 15. Be2 c5 16. Kf2 e5 17. Rac1 Rac8 18. Rhd1 c4 19. Qb2 {½-½ So,W (2776)-Korobov,A (2671) Warsaw Superbet Classic rapid 2022 (1)}) 13... Bh4+ {[%emt 0:09:18]} 14. Kd2 {[%emt 0:01:49]} Nd7 {[%emt 0:04:58]} 15. Bd3 {[%emt 0:01:57]} (15. Rb1 $14) 15... Be7 $11 {[%emt 0:03:03]} 16. g3 {[%emt 0:23:38]} O-O {[%emt 0:07:54]} ({Better is} 16... O-O-O $11) 17. Ke2 $14 {[%emt 0:04:13]} b5 {[%emt 0:04:21]} 18. Rhc1 {[%emt 0:17:12]} Rfb8 {[%emt 0:14:38]} 19. a4 {[%emt 0:05:51]} bxa4 {[%emt 0:06:46] The position is equal.} 20. Qxa4 {[%emt 0:00:26]} a5 {[%emt 0:05:44]} 21. Rcb1 {[%emt 0:05:21] Prevents Rb2+} Nb6 {[%emt 0:02:52]} 22. Qc2 {[%emt 0:02:33]} c5 {[%emt 0:02:57]} 23. Bf4 {[%emt 0:09:46]} Bd6 {[%emt 0:00:24] [#] ...c4 is the strong threat.} 24. dxc5 {[%emt 0:01:56]} Qxc5 {[%emt 0:00:17] aiming for ...Bxf4.} 25. Rb5 {[%emt 0:00:30]} Qc7 {[%emt 0:00:30]} 26. Bxd6 {[%emt 0:01:53]} (26. Raxa5 $2 {perishes.} Bxf4 27. Rxa8 Rxa8 $19) 26... Qxd6 {[%emt 0:00:06]} 27. Rbxa5 {[%emt 0:00:12]} Rxa5 {[%emt 0:00:37]} 28. Rxa5 {[%emt 0:00:07]} Nd7 {[%emt 0:01:42]} (28... Rd8 {seems wilder.} 29. Rb5 g5 30. Rb4 Qc5) 29. Ra1 {[%emt 0:03:00]} Nc5 {[%emt 0:21:56]} 30. Bc4 {[%emt 0:04:27]} Qe5 {[%emt 0:02:54]} 31. Kf1 {[%emt 0:00:51]} g5 {[%emt 0:01:33]} 32. Re1 {[%emt 0:03:23]} Rc8 {[%emt 0:02:53]} 33. Be2 {[%emt 0:01:28]} g6 {[%emt 0:04:02]} 34. Kg2 {[%emt 0:03:13]} Kg7 {[%emt 0:01:43]} 35. Rd1 {[%emt 0:02:21]} g4 {[%emt 0:05:26]} 36. f4 {[%emt 0:01:31]} Qxe4+ {[%emt 0:00:26]} 37. Qxe4 {[%emt 0:00:08]} Nxe4 {[%emt 0:00:03]} 38. Bxg4 {[%emt 0:00:13]} Rxc3 {[%emt 0:00:13]} 39. Re1 {[%emt 0:00:37] Weighted Error Value: White=0.06 (flawless) /Black=0.06 (flawless)} 1/2-1/2